bitfinex/quotes_ETHUSD_20250123
["timestamp","ask_amount","ask_price","bid_price","bid_amount"]
[1737630135356,3.12036,3204.8,3204.5,0.3883]
[1737630135651,3.1202,3205.0,3204.6,0.55]
[1737630136013,3.11996,3205.2,3204.6,0.55]
[1737630136342,3.12002,3205.1,3204.6,0.55]
[1737630136516,3.11996,3205.2,3204.7,0.12807855]
[1737630136722,3.11996,3205.2,3204.8,0.55]
[1737630136919,3.12015,3205.0,3204.7,0.12807855]
[1737630137944,0.15298097,3206.4,3204.7,0.55]
[1737630138144,3.11894,3206.3,3205.7,0.9383]
[1737630138449,3.1186,3206.6,3205.7,0.9383]
[1737630138746,3.1186,3206.6,3205.9,0.55]
[1737630138913,3.11873,3206.5,3205.9,3.66918]
[1737630139113,3.11873,3206.5,3206.0,3.11913]
[1737630139338,3.11848,3206.7,3206.2,0.3883]
[1737630139842,3.11827,3206.9,3206.2,0.3883]
[1737630139843,3.11857,3206.6,3206.2,0.3883]
[1737630141344,6.23681,3206.8,3206.2,0.3883]
[1737630141684,3.11837,3206.8,3206.2,0.3883]
[1737630141854,3.11853,3206.7,3206.2,0.3883]
[1737630143427,3.11837,3206.8,3206.2,0.3883]
[1737630143629,3.11821,3207.0,3206.3,0.55]
[1737630143951,6.23648,3207.0,3206.4,3.1187]
[1737630144112,3.11821,3207.0,3206.4,3.1187]
[1737630144310,3.11827,3206.9,3206.3,0.55]
[1737630144715,3.11827,3206.9,3206.4,0.12780642]
[1737630145219,3.11827,3206.9,3206.4,0.54630206]
[1737630146260,3.11821,3207.0,3206.4,0.41849564]
[1737630146448,3.11829,3206.9,3206.4,0.41849564]
[1737630147159,3.11829,3206.9,3206.3,3.66885]
[1737630148874,3.11829,3206.9,3206.4,0.12772453]
[1737630149974,3.11808,3207.1,3206.6,3.11853]
[1737630150275,3.93953,3207.3,3206.8,0.3883]
[1737630150276,3.11793,3207.3,3206.8,0.3883]
[1737630151823,3.11798,3207.2,3206.8,0.3883]
[1737630152942,3.11793,3207.3,3206.8,0.3883]
[1737630153294,3.11798,3207.2,3206.8,0.3883]
[1737630154480,3.11798,3207.2,3206.9,0.12737193]
[1737630155563,6.23605,3207.2,3206.9,0.12737193]
[1737630155784,3.11817,3207.0,3206.9,0.12737193]
[1737630155952,4.492294,3207.0,3206.9,0.12737193]
[1737630157148,4.492294,3207.0,3205.7,0.3883]
[1737630157149,3.11895,3206.2,3206.1,0.12737193]
[1737630157850,3.1188,3206.4,3206.1,0.12737193]
[1737630158046,3.11872,3206.5,3206.1,0.12737193]
[1737630158286,3.11872,3206.5,3206.2,0.12737193]
[1737630158475,3.11858,3206.6,3206.2,0.51567193]
[1737630158797,3.11867,3206.5,3206.2,0.51567193]
[1737630158995,3.11858,3206.6,3206.2,0.51567193]
[1737630159356,3.11868,3206.5,3206.2,0.51567193]
[1737630159752,3.11868,3206.5,3206.3,0.12737193]
[1737630160170,3.11876,3206.4,3206.3,0.12737193]
[1737630162102,3.11858,3206.6,3206.3,0.12737193]
[1737630162272,6.23722,3206.6,3206.3,0.12737193]
[1737630162474,3.11858,3206.6,3206.3,0.12737193]
[1737630162883,3.11866,3206.5,3206.4,0.12737193]
[1737630163251,3.742384,3206.5,3206.4,0.12737193]
[1737630164620,0.623724,3206.5,3205.7,0.20376164]
[1737630164819,3.11911,3206.1,3205.7,0.20376164]
[1737630166110,3.11911,3206.1,3205.8,0.3315546]
[1737630166471,3.11918,3206.0,3205.8,0.3315546]
[1737630166669,3.11911,3206.1,3205.8,0.3315546]
[1737630167081,3.11924,3205.9,3205.8,0.3315546]
[1737630167282,3.11924,3205.9,3205.1,0.3883]
[1737630167283,3.11934,3205.8,3205.1,0.3883]
[1737630167495,3.11951,3205.7,3205.1,3.50831]
[1737630167720,3.11959,3205.6,3205.1,0.3883]
[1737630168100,3.11959,3205.6,3205.0,6.12009]
[1737630168101,0.7511,3205.4,3204.6,0.3883]
[1737630168274,3.87091,3205.4,3204.6,0.3883]
[1737630168482,3.12024,3204.9,3204.3,3.50908]
[1737630168681,3.12024,3204.9,3204.7,0.33293999]
[1737630169273,3.12003,3205.1,3204.7,0.33293999]
[1737630169499,3.11964,3205.5,3204.8,3.50855]
[1737630169719,3.11983,3205.3,3204.8,0.3883]
[1737630170179,3.11983,3205.3,3204.8,3.50859]
[1737630170511,3.11983,3205.3,3204.8,0.3883]
[1737630173134,3.11995,3205.2,3204.8,0.3883]
[1737630173334,3.11983,3205.3,3204.8,0.3883]
[1737630173525,3.12004,3205.1,3204.8,0.3883]
[1737630173846,3.11983,3205.3,3204.8,0.3883]
[1737630174416,3.11996,3205.2,3204.8,0.3883]
[1737630175434,3.11983,3205.3,3204.8,0.3883]
[1737630175816,3.12001,3205.2,3204.8,0.3883]
[1737630176203,3.11983,3205.3,3204.8,0.3883]
[1737630176403,3.12005,3205.1,3204.8,0.3883]
[1737630176598,3.12005,3205.1,3204.5,3.12054]
[1737630176599,3.12023,3204.9,3204.5,0.3883]
[1737630177498,3.12013,3205.0,3204.5,0.3883]
[1737630179693,0.7639,3205.1,3204.5,0.3883]
[1737630179694,3.12022,3204.9,3204.5,0.3883]
[1737630180545,0.7639,3205.1,3204.3,3.0]
[1737630180887,3.1204,3204.8,3204.2,6.12089]
[1737630181086,6.2408,3204.8,3204.2,6.12089]
[1737630181263,3.12012,3205.0,3204.2,6.12084]
[1737630181461,3.12012,3205.0,3204.4,3.12068]
[1737630181682,3.12012,3205.0,3204.1,0.3883]
[1737630181987,3.12012,3205.0,3204.4,3.12063]
[1737630182291,3.12012,3205.0,3204.5,0.350893]
[1737630182452,3.12012,3205.0,3204.5,3.471483]
[1737630182647,3.11996,3205.2,3204.5,3.471483]
[1737630182899,6.23998,3205.2,3204.5,3.471483]
[1737630183315,3.12002,3205.1,3204.5,3.471483]
[1737630183605,3.11996,3205.2,3204.6,0.99033434]
[1737630183832,3.12003,3205.1,3204.6,0.44033434]
[1737630183981,3.12081,3204.3,3203.9,0.3883]
[1737630184314,3.1209,3204.2,3203.9,0.3883]
[1737630184608,3.1209,3204.2,3203.6,3.12148]
[1737630184778,3.1209,3204.2,3203.7,3.0]
[1737630185307,3.12075,3204.4,3203.8,0.55]
[1737630185686,3.12106,3204.1,3203.5,0.3883]
[1737630186011,3.12143,3203.7,3203.5,0.3883]
[1737630186211,3.12125,3203.9,3203.3,3.12171]
[1737630186417,3.12129,3203.8,3203.3,3.12171]
[1737630186714,3.12125,3203.9,3203.3,3.12171]
[1737630187317,3.12125,3203.9,3203.4,0.55]
[1737630187793,3.87313,3204.1,3203.4,3.67165]
[1737630188119,3.12121,3203.9,3203.4,3.67165]
[1737630190184,3.12121,3203.9,3203.3,0.55]
[1737630190520,3.12139,3203.7,3203.3,0.956016]
[1737630190884,3.12121,3203.9,3203.3,0.956016]
[1737630191227,6.2425,3203.9,3203.3,0.956016]
[1737630191717,3.12121,3203.9,3203.3,4.077776]
[1737630191905,3.12133,3203.8,3203.3,4.077776]
[1737630192090,3.12133,3203.8,3203.4,0.12752476]
[1737630192294,3.12153,3203.6,3203.4,0.12752476]
[1737630192602,3.12058,3204.6,3203.4,0.12752476]
[1737630192603,3.12158,3203.5,3203.4,0.12752476]
[1737630193037,3.12146,3203.7,3203.4,0.12752476]
[1737630193317,3.12145,3203.7,3203.4,0.12752476]
[1737630193525,3.12149,3203.6,3203.1,3.24946476]
[1737630193822,3.12178,3203.3,3203.2,0.32494648]
[1737630193987,3.12187,3203.2,3203.1,0.12752476]
[1737630194417,6.24353,3203.4,3202.9,0.12752476]
[1737630194725,3.12178,3203.3,3202.9,0.12752476]
[1737630194882,3.12188,3203.2,3202.9,0.12752476]
[1737630195434,0.7993,3203.8,3202.9,0.12752476]
[1737630195435,3.1218,3203.3,3202.9,0.12752476]
[1737630195612,3.12191,3203.2,3202.9,0.12752476]
[1737630195938,3.12207,3203.0,3202.9,0.12752476]
[1737630197299,3.12197,3203.1,3202.2,3.25036476]
[1737630197529,3.12226,3202.9,3202.2,3.25036476]
[1737630198101,3.12226,3202.9,3202.3,0.12752476]
[1737630198623,3.12234,3202.8,3202.3,0.12752476]
[1737630198933,3.12234,3202.8,3202.3,3.25026476]
[1737630199508,3.1221,3203.0,3202.4,3.25015476]
[1737630200535,3.1221,3203.0,3202.4,3.12263]
[1737630200735,6.24425,3203.0,3202.4,3.12263]
[1737630200937,3.1221,3203.0,3202.4,3.12263]
[1737630201233,3.90261,3203.2,3202.6,3.12246]
[1737630201736,3.90261,3203.2,3202.7,3.5106]
[1737630206069,3.12203,3203.1,3202.5,3.1225]
[1737630206264,3.90261,3203.2,3202.5,3.1225]
[1737630206431,3.12209,3203.0,3202.5,3.1225]
[1737630206748,7.02457,3203.2,3202.5,3.1225]
[1737630207052,3.12198,3203.1,3202.5,3.1225]
[1737630207530,3.12198,3203.1,3202.6,0.12757863]
[1737630207725,3.90261,3203.2,3202.7,3.12235]
[1737630207726,0.7807,3203.2,3202.7,3.12235]
[1737630208141,3.90257,3203.2,3202.7,3.12235]
[1737630209042,0.7807,3203.2,3202.8,0.12757863]
[1737630209215,3.90496,3203.8,3203.1,3.12188]
[1737630209651,3.90496,3203.8,3203.0,0.55]
[1737630209952,3.12136,3203.8,3203.3,3.12174]
[1737630210251,3.12136,3203.8,3203.3,3.12177]
[1737630211449,3.12111,3204.0,3203.3,3.44670486]
[1737630211648,3.12107,3204.1,3203.5,3.1215]
[1737630212727,3.12107,3204.1,3203.6,0.12780873]
[1737630214049,3.12107,3204.1,3203.7,0.12780873]
[1737630214457,3.12082,3204.3,3203.7,3.24915873]
[1737630214852,3.121,3204.1,3203.7,0.12780873]
[1737630215053,3.121,3204.1,3203.8,0.12780873]
[1737630216065,3.12091,3204.2,3203.9,0.12780873]
[1737630216364,3.88139,3204.4,3203.9,0.12780873]
[1737630216365,3.12079,3204.4,3203.9,0.12780873]
[1737630216563,3.12079,3204.4,3204.0,0.3883]
[1737630216762,3.12056,3204.6,3204.0,3.50938]
[1737630217129,0.7936,3204.7,3204.0,3.50938]
[1737630217328,3.11999,3205.2,3204.5,3.12053]
[1737630217780,3.12019,3205.0,3204.4,3.67068]
[1737630217990,3.12019,3205.0,3204.5,3.1206]
[1737630218465,3.11999,3205.2,3204.5,3.1206]
[1737630218666,3.12003,3205.1,3204.4,0.55]
[1737630219047,3.12003,3205.1,3204.5,3.1206]
[1737630219491,3.12003,3205.1,3204.6,0.12780873]
[1737630219783,3.12041,3204.7,3204.6,0.12780873]
[1737630220481,3.12041,3204.7,3204.3,0.12780873]
[1737630221180,3.12031,3204.9,3204.3,0.12780873]
[1737630221352,3.12014,3205.0,3204.4,3.12065]
[1737630222870,3.12007,3205.1,3204.5,0.3883]
[1737630223074,3.11967,3205.5,3204.6,6.24085]
[1737630223272,3.11967,3205.5,3204.7,3.12041]
[1737630223273,3.11989,3205.3,3204.7,3.12041]
[1737630224501,0.7636,3205.9,3205.2,3.11985]
[1737630224773,3.11916,3206.0,3205.4,3.11971]
[1737630224949,0.7636,3206.2,3205.9,3.11923]
[1737630225275,3.11827,3207.0,3205.7,3.11938]
[1737630225276,3.11887,3206.3,3205.7,3.11938]
[1737630225479,3.11887,3206.3,3205.8,3.11934]
[1737630225784,3.11937,3205.8,3205.3,0.3883]
[1737630225940,0.391867,3206.3,3205.4,3.11965]
[1737630225941,3.11916,3206.0,3205.4,3.11965]
[1737630227077,3.11916,3206.0,3205.4,0.55]
[1737630227261,3.11916,3206.0,3205.4,3.66972]
[1737630227772,3.11931,3205.9,3205.4,0.55]
[1737630228073,3.11931,3205.9,3205.4,0.95582]
[1737630228583,3.88861,3205.9,3205.3,0.3883]
[1737630228755,3.11946,3205.7,3205.3,0.3883]
[1737630229261,3.11946,3205.7,3205.0,0.3883]
[1737630229461,3.1197,3205.5,3205.0,0.3883]
[1737630230167,3.11946,3205.7,3205.0,3.5084]
[1737630230887,3.11947,3205.7,3205.0,0.73914]
[1737630231086,3.11947,3205.7,3205.1,3.11996]
[1737630231977,3.88858,3205.9,3205.1,3.11996]
[1737630232190,3.11928,3205.9,3205.3,3.11976]
[1737630232495,3.11909,3206.1,3205.5,3.50787]
[1737630232785,3.11916,3206.0,3205.5,3.50787]
[1737630233089,3.91891,3206.2,3205.6,3.11952]
[1737630233593,3.11908,3206.1,3205.5,3.50787]
[1737630234162,3.11908,3206.1,3205.3,3.1198]
[1737630234163,3.1194,3205.8,3205.3,0.3883]
[1737630234557,3.1194,3205.8,3205.3,3.50812]
[1737630234757,3.1194,3205.8,3205.3,0.3883]
[1737630235079,3.1194,3205.8,3205.3,3.50811]
[1737630235280,3.1194,3205.8,3205.3,0.3883]
[1737630235687,3.11954,3205.6,3205.3,0.3883]
[1737630235886,3.11965,3205.5,3205.0,3.50838]
[1737630237406,1.393955,3205.8,3205.0,0.3883]
[1737630237407,3.11989,3205.3,3205.0,0.3883]
[1737630237568,3.12002,3205.1,3204.5,3.12053]
[1737630237768,3.12002,3205.1,3204.4,0.3883]
[1737630238001,3.12002,3205.1,3204.5,3.1206]
[1737630238203,3.88673,3205.2,3204.6,3.1205]
[1737630238374,3.12003,3205.1,3204.5,3.1206]
[1737630238579,0.7668,3205.4,3204.4,0.739206]
[1737630238580,3.12024,3204.9,3204.4,0.739206]
[1737630238904,3.12024,3204.9,3204.4,0.3883]
[1737630239202,3.12024,3204.9,3204.6,0.12742191]
[1737630239700,3.12007,3205.1,3204.6,0.12742191]
[1737630240063,6.24019,3205.1,3204.6,0.12742191]
[1737630240395,3.12022,3205.0,3204.5,0.12742191]
[1737630240603,3.11988,3205.3,3204.5,3.24802191]
[1737630240767,3.11975,3205.4,3204.8,3.50856]
[1737630241211,3.11984,3205.3,3204.8,0.3883]
[1737630241414,0.7814,3205.7,3204.8,0.3883]
[1737630241415,3.11999,3205.2,3204.8,0.3883]
[1737630241624,3.11999,3205.2,3204.9,0.12742191]
[1737630244525,3.12011,3205.1,3204.6,0.12742191]
[1737630244908,3.12011,3205.1,3204.6,3.24791191]
[1737630245424,0.7918,3205.2,3204.6,3.24791191]
[1737630246011,0.7918,3205.2,3204.7,0.12742191]
[1737630246532,3.11994,3205.2,3204.7,0.12742191]
[1737630246725,3.11936,3205.8,3205.2,3.11989]
[1737630247431,3.11917,3206.0,3205.3,3.24723191]
[1737630247645,3.11917,3206.0,3205.4,0.3883]
[1737630247919,3.11926,3205.9,3205.4,0.3883]
[1737630248141,3.1194,3205.8,3205.4,0.3883]
[1737630248694,3.1194,3205.8,3205.5,0.12742191]
[1737630249320,6.23843,3206.0,3205.5,0.12742191]
[1737630249621,3.11925,3205.9,3205.5,0.12742191]
[1737630250002,3.11925,3205.9,3205.6,0.12742191]
[1737630251630,3.11925,3205.9,3205.7,0.12742191]
[1737630251785,3.11906,3206.1,3205.7,0.12742191]
[1737630252303,3.11906,3206.1,3205.5,3.1196]
[1737630252502,3.11906,3206.1,3205.8,0.12778175]
[1737630253234,3.11849,3206.7,3205.8,0.12778175]
[1737630253235,3.918,3206.5,3205.9,3.11923]
[1737630253541,3.11876,3206.4,3205.9,0.3883]
[1737630253737,3.11876,3206.4,3206.0,0.12778175]
[1737630254037,3.1189,3206.3,3206.0,0.12778175]
[1737630254550,3.11896,3206.2,3206.0,0.12778175]
[1737630254905,3.11896,3206.2,3206.1,0.12778175]
[1737630255618,3.11892,3206.3,3206.1,0.12778175]
[1737630256149,3.11827,3206.9,3206.2,0.12778175]
[1737630256348,0.8216,3207.2,3206.3,0.3883]
[1737630256349,3.11838,3206.8,3206.3,0.3883]
[1737630256550,3.11857,3206.6,3206.3,0.3883]
[1737630256750,3.11838,3206.8,3206.3,0.3883]
[1737630257118,3.11821,3207.0,3206.4,0.12778175]
[1737630257450,3.11788,3207.4,3206.7,3.50674]
[1737630257615,3.11794,3207.3,3206.7,3.50674]
[1737630257798,3.118,3207.2,3206.7,3.50674]
[1737630258742,3.118,3207.2,3206.7,0.3883]
[1737630258943,3.118,3207.2,3206.8,0.12778175]
[1737630259144,3.1181,3207.1,3206.8,0.12778175]
[1737630259464,6.93117,3206.9,3206.8,0.12778175]
[1737630259595,7.936114,3206.9,3206.8,1.75e-06]
[1737630259801,3.0,3206.6,3205.5,3.11963]
[1737630260119,3.0,3206.3,3205.5,3.11963]
[1737630260317,3.11913,3206.1,3205.5,3.11963]
[1737630260517,3.11961,3205.6,3205.4,0.3883]
[1737630260731,3.11961,3205.6,3204.8,0.63324752]
[1737630260732,3.11983,3205.4,3205.0,0.3883]
[1737630260916,3.431521,3205.6,3204.3,3.50901]
[1737630260917,3.0,3204.8,3204.3,3.50901]
[1737630261201,3.0,3205.0,3204.4,3.12069]
[1737630261556,0.5,3206.4,3204.3,3.50901]
[1737630261557,3.11974,3205.4,3204.8,3.12029]
[1737630261919,3.11984,3205.3,3204.7,3.12034]
[1737630262137,3.11974,3205.4,3204.8,3.12031]
[1737630262458,3.11974,3205.4,3204.9,3.12021]
[1737630262621,3.11964,3205.5,3204.9,3.12021]
[1737630262815,3.0,3205.4,3204.9,3.12021]
[1737630263036,3.0,3205.4,3205.0,0.3883]
[1737630263830,0.8073,3205.6,3205.0,0.3883]
[1737630264038,1.872,3207.9,3205.1,0.55]
[1737630264039,3.1192,3206.0,3205.1,0.55]
[1737630264389,3.11934,3205.8,3205.1,3.67001]
[1737630264525,3.11934,3205.8,3205.2,3.525751]
[1737630264925,3.11901,3206.2,3205.6,3.11953]
[1737630265169,3.11901,3206.2,3205.5,3.11955]
[1737630265481,3.11917,3206.0,3205.4,0.55]
[1737630266058,3.11917,3206.0,3205.4,3.66971]
[1737630266969,3.11925,3205.9,3205.4,3.66972]
[1737630267191,3.11911,3206.1,3205.4,3.66972]
[1737630267893,3.11921,3206.0,3205.4,3.66972]
[1737630268235,3.11942,3205.8,3205.3,0.3883]
[1737630268533,3.11952,3205.7,3205.3,0.3883]
[1737630268737,3.1197,3205.5,3204.8,3.50861]
[1737630269173,3.1197,3205.5,3204.9,0.55]
[1737630269369,3.1197,3205.5,3204.9,3.67019]
[1737630269901,3.1197,3205.5,3204.9,3.12019]
[1737630270198,0.7878,3206.1,3204.9,3.12015]
[1737630270359,0.7878,3206.1,3204.8,0.3883]
[1737630270360,3.11956,3205.6,3205.0,3.470905]
[1737630270561,3.11964,3205.5,3205.0,0.350845]
[1737630270767,3.11964,3205.5,3204.9,3.12021]
[1737630270973,3.11975,3205.4,3204.8,3.50861]
[1737630271192,3.11975,3205.4,3204.9,3.12021]
[1737630271610,3.11956,3205.6,3204.9,3.12021]
[1737630271827,3.11956,3205.6,3205.0,0.12742879]
[1737630271983,3.11924,3205.9,3205.0,3.61109267]
[1737630272183,3.1195,3205.7,3205.1,3.12001]
[1737630272389,3.1195,3205.7,3205.0,0.49102267]
[1737630272390,0.7878,3206.1,3205.4,0.3883]
[1737630272718,3.11918,3206.0,3205.4,3.50797]
[1737630273663,3.11918,3206.0,3205.5,0.12742879]
[1737630274635,6.23806,3206.2,3205.5,3.61057867]
[1737630274769,3.11906,3206.1,3205.5,3.61057867]
[1737630274965,3.0,3206.3,3205.7,3.11937]
[1737630275168,3.11898,3206.2,3205.7,3.11937]
[1737630275370,3.11898,3206.2,3205.5,0.49096867]
[1737630275573,3.11898,3206.2,3205.6,0.52732466]
[1737630275816,3.11842,3206.8,3205.8,0.55]
[1737630275817,0.7639,3206.8,3205.8,0.55]
[1737630275966,3.11845,3206.8,3206.1,3.11904]
[1737630276161,3.11848,3206.7,3206.2,0.3883]
[1737630276387,3.11857,3206.6,3206.2,0.3883]
[1737630277101,3.11845,3206.8,3206.2,3.50723]
[1737630278279,3.11821,3207.0,3206.4,3.11875]
[1737630278689,3.11821,3207.0,3206.5,3.11865]
[1737630278907,6.11809,3207.1,3206.5,3.11865]
[1737630279267,3.11798,3207.2,3206.6,0.55]
[1737630280418,3.11798,3207.2,3206.6,3.66856]
[1737630281068,3.11847,3206.7,3206.2,0.3883]
[1737630282073,3.11847,3206.7,3206.2,3.50725]
[1737630282289,3.11829,3206.9,3206.2,3.50725]
[1737630282689,3.11845,3206.8,3206.2,3.50725]
[1737630282892,3.11829,3206.9,3206.3,0.12723353]
[1737630282893,3.11849,3206.7,3206.3,0.12723353]
[1737630283380,3.11829,3206.9,3206.3,0.12723353]
[1737630283575,3.11837,3206.8,3206.3,0.12723353]
[1737630284806,1.413466,3206.7,3206.3,0.12723353]
[1737630284976,3.11876,3206.4,3206.3,0.12723353]
[1737630285176,2.61876,3206.4,3206.3,0.12723353]
[1737630286730,2.61876,3206.4,3205.6,3.24669353]
[1737630286884,3.11893,3206.3,3205.7,3.11942]
[1737630287241,3.11944,3205.7,3205.6,0.12723353]
[1737630287525,3.743315,3205.7,3205.6,0.12723353]
[1737630288325,3.743315,3205.7,3204.9,0.12723353]
[1737630288326,3.11972,3205.5,3204.9,0.12723353]
[1737630288505,3.11975,3205.4,3204.9,0.12723353]
[1737630288891,3.11975,3205.4,3205.0,0.55]
[1737630289580,3.11975,3205.4,3205.1,0.12723353]
[1737630290080,3.11983,3205.3,3205.1,0.12723353]
[1737630290282,3.11975,3205.4,3205.1,0.12723353]
[1737630290931,3.11955,3205.6,3205.1,0.12723353]
[1737630291132,3.11966,3205.5,3205.1,0.12723353]
[1737630291346,3.0,3205.9,3205.1,0.50697788]
[1737630291639,3.0,3205.9,3205.3,3.11976]
[1737630291840,6.1193,3205.9,3205.3,3.11976]
[1737630292411,6.1193,3205.9,3205.4,0.9383]
[1737630292714,6.11927,3205.9,3205.4,0.9383]
[1737630292885,3.11936,3205.8,3205.5,0.12723353]
[1737630293084,6.11927,3205.9,3205.5,0.12723353]
[1737630293417,3.11927,3205.9,3205.5,0.12723353]
[1737630293718,3.11906,3206.1,3205.5,0.12723353]
[1737630293933,3.11889,3206.3,3205.6,0.12723353]
[1737630293934,3.11934,3205.9,3205.6,0.12723353]
[1737630294140,3.11944,3205.7,3205.6,0.12723353]
[1737630295415,3.11956,3205.6,3205.2,0.12723353]
[1737630295833,3.11929,3205.9,3205.3,0.55]
[1737630296040,3.11929,3205.9,3205.4,3.11972]
[1737630296222,3.11929,3205.9,3205.3,3.66974]
[1737630296582,3.11929,3205.9,3205.5,0.12723353]
[1737630296982,3.11952,3205.7,3205.5,0.12723353]
[1737630297183,3.11954,3205.6,3205.5,0.12723353]
[1737630297439,3.11954,3205.6,3205.2,0.12723353]
[1737630297620,3.11966,3205.5,3205.2,0.12723353]
[1737630298491,3.11952,3205.7,3205.2,3.24711353]
[1737630298737,3.11952,3205.7,3205.3,0.12723353]
[1737630299846,3.11928,3205.9,3205.4,0.55]
[1737630300040,0.7605,3206.3,3205.3,3.61053488]
[1737630300041,3.87936,3206.3,3205.7,3.11936]
[1737630300245,3.11886,3206.3,3205.7,3.11936]
[1737630300527,3.11896,3206.2,3205.7,3.11936]
[1737630300910,3.11883,3206.4,3205.8,3.11933]
[1737630301091,3.11883,3206.4,3205.8,3.54701599]
[1737630301289,3.11886,3206.3,3205.8,0.42768599]
[1737630301499,3.11886,3206.3,3205.5,3.50789]
[1737630301701,3.11907,3206.1,3205.9,0.12723353]
[1737630302423,3.11896,3206.2,3205.9,0.12723353]
[1737630302625,3.11896,3206.2,3205.7,0.12723353]
[1737630302828,0.7605,3206.6,3205.7,0.12723353]
[1737630302998,3.11921,3206.0,3205.7,0.12723353]
[1737630303703,3.11904,3206.2,3205.8,0.12723353]
[1737630303896,6.23807,3206.2,3205.8,0.12723353]
[1737630304090,3.1187,3206.5,3205.9,3.11918]
[1737630304301,3.0,3206.4,3205.9,3.11918]
[1737630304608,3.11876,3206.4,3206.0,0.3883]
[1737630304804,3.11876,3206.4,3206.0,0.51553353]
[1737630305328,3.11893,3206.3,3206.0,0.51553353]
[1737630306403,6.11874,3206.5,3206.0,0.51553353]
[1737630306608,6.11874,3206.5,3206.1,0.12723353]
[1737630307727,6.11874,3206.5,3206.2,0.12723353]
[1737630308003,3.11885,3206.3,3206.2,0.12723353]
[1737630308397,3.87905,3206.3,3206.2,0.12723353]
[1737630309121,3.11932,3205.9,3205.4,0.51553353]
[1737630309499,3.11912,3206.1,3205.4,0.51553353]
[1737630309704,3.11912,3206.1,3205.5,3.11963]
[1737630310447,6.23825,3206.1,3205.5,3.11963]
[1737630310622,3.11912,3206.1,3205.5,3.11963]
[1737630310933,3.1189,3206.3,3205.7,3.11944]
[1737630311445,3.11896,3206.2,3205.7,3.11944]
[1737630311826,3.11896,3206.2,3205.6,0.51553353]
[1737630312440,3.11909,3206.1,3205.8,0.12723353]
[1737630313055,3.11917,3206.0,3205.8,0.12723353]
[1737630313618,3.11909,3206.1,3205.8,0.12723353]
[1737630313831,3.11909,3206.1,3205.9,0.12723353]
[1737630314818,3.11915,3206.0,3205.9,0.12723353]
[1737630315317,3.1193,3205.9,3205.5,0.55]
[1737630315529,3.11952,3205.7,3205.1,0.3883]
[1737630315733,3.11977,3205.4,3205.1,0.3883]
[1737630315931,3.11993,3205.2,3205.1,0.3883]
[1737630316314,3.11993,3205.2,3204.2,0.412]
[1737630316315,3.12014,3205.0,3204.8,0.3883]
[1737630316531,3.12014,3205.0,3204.4,3.50899]
[1737630316757,3.11997,3205.2,3204.6,3.1205]
[1737630317959,3.12014,3205.0,3204.5,0.55]
[1737630318152,3.95014,3205.0,3204.7,0.33195648]
[1737630318343,3.12031,3204.8,3204.7,0.33195648]
[1737630318927,3.12014,3205.0,3204.7,0.33195648]
[1737630319542,3.11996,3205.2,3204.7,3.63216369]
[1737630320061,3.11996,3205.2,3204.7,0.51175369]
[1737630320365,3.12006,3205.1,3204.7,0.12766804]
[1737630320931,3.12006,3205.1,3204.6,0.3883]
[1737630320932,3.12006,3205.1,3204.8,0.33195648]
[1737630321131,3.12022,3204.9,3204.8,0.33195648]
[1737630322467,3.12006,3205.1,3204.8,0.33195648]
[1737630322659,3.11985,3205.3,3204.9,0.3883]
[1737630323740,3.12013,3205.0,3204.4,0.3883]
[1737630323957,3.12013,3205.0,3204.4,0.739202]
[1737630324134,3.12047,3204.7,3204.4,0.739202]
[1737630324333,3.12032,3204.8,3204.2,3.5092]
[1737630325063,3.12032,3204.8,3204.3,0.33164943]
[1737630326451,3.12042,3204.7,3204.3,0.33164943]
[1737630326773,3.12032,3204.8,3204.4,0.33164943]
[1737630326985,3.12044,3204.7,3204.4,0.33164943]
[1737630327187,3.12012,3205.0,3204.4,0.33164943]
[1737630327368,3.1204,3204.8,3204.4,0.33164943]
[1737630328032,3.1204,3204.8,3204.5,0.12754995]
[1737630328649,0.8176,3205.1,3204.5,0.12754995]
[1737630328850,3.12051,3204.6,3204.5,0.12754995]
[1737630329073,3.91521,3204.6,3204.5,0.12754995]
[1737630329839,4.618771,3204.6,3204.5,0.12754995]
[1737630331150,3.12088,3204.3,3204.0,0.12754995]
[1737630331347,3.12065,3204.5,3204.0,0.12754995]
[1737630331646,3.12054,3204.6,3204.1,0.3883]
[1737630332268,3.12063,3204.5,3204.1,0.3883]
[1737630332976,3.12063,3204.5,3204.2,0.12754995]
[1737630334297,3.1207,3204.4,3204.3,0.12754995]
[1737630335371,3.9199,3204.4,3204.3,0.12754995]
[1737630335578,3.1208,3204.3,3204.2,0.12754995]
[1737630335759,6.1208,3204.3,3204.2,0.12754995]
[1737630336985,3.12119,3203.9,3203.7,0.12754995]
[1737630338300,3.12119,3203.9,3203.8,0.12754995]
[1737630342207,3.93189,3203.9,3203.8,0.12754995]
[1737630342372,7.94929,3203.9,3203.8,0.12754995]
[1737630342577,7.94929,3203.9,3202.6,3.12237]
[1737630342578,3.93218,3203.6,3203.5,9.95e-06]
[1737630342907,6.93218,3203.6,3203.5,9.95e-06]
[1737630344095,3.1223,3202.8,3202.6,0.3883]
[1737630344304,3.12259,3202.5,3202.3,0.20409948]
[1737630345095,3.12265,3202.4,3202.3,0.20409948]
[1737630345410,3.12289,3202.2,3201.7,0.3883]
[1737630345621,3.12289,3202.2,3201.7,3.51162]
[1737630345786,3.12265,3202.4,3201.7,3.51162]
[1737630345990,3.12277,3202.3,3201.7,3.51162]
[1737630346429,3.12277,3202.3,3201.8,0.29042645]
[1737630346729,3.12247,3202.6,3201.8,0.6706311]
[1737630346926,3.12247,3202.6,3201.9,3.12313]